bitfinex-derivatives/quotes_ETHF0:USTF0_20250103
["timestamp","ask_amount","ask_price","bid_price","bid_amount"]
[1735905972066,0.28882,3464.9,3464.8,0.28881]
[1735905972770,0.28883,3464.7,3464.6,0.28882]
[1735905972970,0.28883,3464.6,3464.5,4.51226044]
[1735905973176,0.28883,3464.6,3464.5,4.80110044]
[1735905973572,41.08883,3464.6,3464.5,4.51226044]
[1735905973776,0.28886,3464.4,3464.3,0.28884]
[1735905974172,0.28884,3464.6,3464.5,0.28883]
[1735905974473,41.08884,3464.6,3464.5,0.28883]
[1735905975682,40.8,3464.6,3464.5,0.28883]
[1735905976583,3.49663,3464.7,3464.6,0.28883]
[1735905976779,3.2078,3464.7,3464.6,0.28883]
[1735905977086,41.08881,3464.8,3464.7,0.28882]
[1735905977377,0.28881,3464.8,3464.7,0.28882]
[1735905977584,0.28881,3465.0,3464.9,0.2888]
[1735905977980,41.08881,3465.0,3464.9,0.2888]
[1735905978174,3.2078,3465.1,3464.7,2.27678161]
[1735905978380,3.2078,3465.1,3465.0,0.2888]
[1735905978782,0.28878,3465.2,3464.7,2.99882161]
[1735905978985,2.27150427,3465.4,3464.7,2.99882161]
[1735905979188,0.28878,3465.3,3465.2,0.28877]
[1735905979388,0.28877,3465.4,3465.3,0.28875]
[1735905981686,3.2078,3465.6,3464.9,0.72201]
[1735905981877,0.28878,3465.3,3465.2,0.28877]
[1735905982781,41.08878,3465.3,3465.2,0.28877]
[1735905984284,44.0078,3465.3,3465.2,0.28877]
[1735905984787,3.2078,3465.3,3465.2,0.28877]
[1735905985987,3.49658,3465.3,3465.2,0.28877]
[1735905986686,3.2078,3465.3,3465.2,0.28877]
[1735905987782,40.8,3465.4,3465.3,0.28878]
[1735905987987,3.47389204,3465.8,3465.7,0.28875]
[1735905988177,3.2078,3465.8,3465.7,0.28875]
[1735905988977,3.49654,3465.8,3465.7,0.28875]
[1735905989190,3.2078,3465.8,3465.7,0.28875]
[1735905993282,3.2078,3466.2,3465.7,0.28875]
[1735905993483,3.49651,3466.2,3466.1,0.28871]
[1735905994088,3.2078,3466.2,3465.3,5.48458161]
[1735905994297,0.28874,3465.9,3465.8,0.28873]
[1735905994889,2.27678161,3466.1,3465.3,3.2078]
[1735905995089,0.28877,3465.6,3465.5,0.28876]
[1735905996087,41.08877,3465.6,3465.5,0.28876]
[1735905997192,0.28877,3465.6,3465.5,0.28876]
[1735905998093,41.08875,3465.7,3465.6,0.28876]
[1735905998893,41.08875,3465.7,3465.3,0.72194]
[1735905998894,0.28874,3465.8,3465.3,2.99872161]
[1735905999188,0.28874,3465.8,3465.7,0.28875]
[1735905999390,3.49654,3465.8,3465.7,0.28875]
[1735905999589,0.28877,3465.6,3465.5,0.28875]
[1735906000490,3.2078,3465.8,3465.2,0.72197]
[1735906000687,0.28875,3465.7,3465.6,0.28875]
[1735906001395,3.49654,3465.8,3465.7,0.28875]
[1735906003493,3.2078,3465.8,3465.7,0.28875]
[1735906003997,3.49654,3465.8,3465.7,0.28875]
[1735906004705,3.2078,3465.8,3465.7,0.28875]
[1735906004901,0.28873,3466.0,3465.9,0.28873]
[1735906006195,0.28872,3466.1,3466.0,0.28871]
[1735906008695,44.29651,3466.2,3466.1,0.28871]
[1735906010196,3.49651,3466.2,3466.1,0.28871]
[1735906011898,3.2078,3466.2,3466.1,0.28871]
[1735906012096,2.27150427,3466.8,3466.6,0.28867]
[1735906012097,3.2078,3466.7,3466.6,0.28867]
[1735906013601,3.49646,3466.7,3466.6,0.28867]
[1735906015298,3.2078,3466.7,3466.6,0.28867]
[1735906015503,3.49646,3466.7,3466.6,0.28867]
[1735906020309,44.29646,3466.7,3466.6,0.28867]
[1735906023601,44.0078,3466.7,3466.6,0.28867]
[1735906023912,44.29646,3466.7,3466.6,0.28867]
[1735906024206,44.0078,3466.7,3466.6,0.28867]
[1735906024412,3.2078,3466.7,3466.6,0.28867]
[1735906028500,3.49641,3467.1,3467.0,0.28861]
[1735906029110,0.28861,3467.1,3467.0,0.28861]
[1735906029708,41.08861,3467.2,3467.1,0.28861]
[1735906031510,2.27150427,3467.8,3467.0,4.12631161]
[1735906031823,0.28857,3467.7,3467.6,0.28856]
[1735906033006,40.8,3467.7,3467.2,0.72151]
[1735906033206,0.28858,3467.6,3467.5,0.28857]
[1735906033413,40.8,3467.7,3467.0,1.128]
[1735906033608,40.8,3467.7,3467.1,0.2886]
[1735906033609,0.28861,3467.2,3467.1,0.2886]
[1735906033913,0.28861,3467.1,3467.0,0.28861]
[1735906034116,0.28863,3467.0,3466.9,0.28862]
[1735906034307,0.28863,3466.9,3466.8,4.51226044]
[1735906034505,3.49643,3466.9,3466.8,4.51226044]
[1735906034914,44.29643,3466.9,3466.8,4.51226044]
[1735906035713,0.28863,3466.8,3466.7,0.28864]
[1735906037712,0.28866,3466.6,3466.5,0.28865]
[1735906038621,0.28868,3466.4,3466.3,0.28866]
[1735906038917,0.72161,3466.8,3466.1,7.51078205]
[1735906039117,0.28866,3466.6,3466.5,0.28865]
[1735906040118,0.28865,3466.8,3466.7,0.28863]
[1735906041222,0.28865,3466.8,3466.4,2.27678161]
[1735906041223,0.28866,3466.7,3466.6,0.28864]
[1735906042616,44.29643,3466.9,3466.8,0.28863]
[1735906043820,3.2078,3466.9,3466.8,0.28863]
[1735906044618,41.08859,3467.3,3467.2,0.2886]
[1735906044809,5.47930427,3467.4,3466.8,0.72159]
[1735906045119,5.76789427,3467.4,3467.3,0.28859]
[1735906045521,3.49639,3467.4,3467.3,0.28859]
[1735906045709,44.29639,3467.4,3467.3,0.28859]
[1735906047316,40.8,3467.4,3467.3,0.28859]
[1735906047717,0.28857,3467.6,3467.0,7.51059205]
[1735906048021,6.20068427,3467.9,3467.0,7.51059205]
[1735906048220,0.28859,3467.5,3467.4,0.28858]
[1735906048422,0.28859,3467.4,3467.3,0.28858]
[1735906048826,3.2078,3467.5,3467.0,7.51059205]
[1735906049128,3.49638,3467.5,3467.4,0.28858]
[1735906050925,3.72708,3467.5,3467.4,0.28858]
[1735906054524,0.2886,3467.2,3467.1,4.51226044]
[1735906054923,41.0886,3467.2,3467.1,4.51226044]
[1735906055822,41.0886,3467.2,3467.1,4.80087044]
[1735906056326,41.0886,3467.2,3467.1,0.28861]
[1735906057229,3.4964,3467.2,3467.1,0.28861]
[1735906058123,3.2078,3467.2,3467.1,0.28861]
[1735906058928,3.2078,3467.2,3467.1,4.64879925]
[1735906060032,3.4964,3467.2,3467.1,4.64879925]
[1735906060229,3.2078,3467.2,3467.1,4.64879925]
[1735906061330,0.2307,3467.5,3467.4,0.28858]
[1735906062727,0.5049,3467.5,3467.4,0.28858]
[1735906064431,0.5049,3467.5,3467.4,4.78961886]
[1735906065939,0.5049,3467.5,3467.4,11.41689276]
[1735906067738,1.2258,3467.5,3467.4,4.6485021]
[1735906070039,1.2258,3467.5,3467.4,11.39491988]
[1735906071339,1.2258,3467.5,3467.4,4.7869003]
[1735906072740,1.2258,3467.5,3467.4,7.03499778]
[1735906073236,1.2258,3467.5,3467.4,9.31177939]
[1735906074132,1.2258,3467.5,3467.4,6.92282501]
[1735906076033,1.4565,3467.5,3467.4,6.92282501]
[1735906080334,1.4565,3467.5,3467.4,13.66816508]
[1735906081848,1.4565,3467.5,3467.4,6.92282501]
[1735906084650,1.4565,3467.5,3467.4,13.66758274]
[1735906087247,1.4565,3467.5,3467.4,18.66758274]
[1735906087552,1.4565,3467.5,3467.4,11.92282501]
[1735906088550,0.21934315,3467.5,3467.4,31.91669382]
[1735906088945,0.21934315,3467.5,3467.4,32.14347902]
[1735906089444,3.15e-06,3467.5,3467.4,32.14347902]
[1735906090550,3.2078,3468.4,3468.3,0.28851]
[1735906090749,3.2078,3468.4,3468.1,3.40178161]
[1735906091052,3.2078,3468.4,3468.3,0.28851]
[1735906094753,3.2078,3468.4,3468.3,4.78536534]
[1735906096147,0.28849,3468.6,3468.5,0.28849]
[1735906099857,3.2078,3468.9,3468.3,4.4931165]
[1735906100054,0.72115,3469.0,3468.3,4.7816165]
[1735906100055,0.2885,3468.4,3468.3,4.7816165]
[1735906100462,41.0885,3468.4,3468.3,0.2885]
[1735906101965,0.2885,3468.4,3468.3,0.2885]
[1735906102167,1.0092,3468.4,3468.3,0.2885]
[1735906102357,0.7207,3468.4,3468.3,0.2885]
[1735906103066,1.0092,3468.4,3468.3,0.2885]
[1735906103569,1.0092,3468.4,3468.3,4.7816165]
[1735906103871,0.7207,3468.4,3468.3,4.7816165]
[1735906104868,1.0092,3468.4,3468.3,4.7816165]
[1735906105266,0.7207,3468.4,3468.3,4.7816165]
[1735906106073,1.0092,3468.4,3468.3,4.7816165]
[1735906106471,1.0092,3468.4,3468.3,0.2885]
[1735906107471,0.28851,3468.3,3468.2,4.7816365]
[1735906107675,0.28852,3468.2,3468.1,4.7816365]
[1735906107869,3.49632,3468.2,3468.1,4.7816365]
[1735906108276,3.49632,3468.2,3468.1,5.78037071]
[1735906108780,3.49632,3468.2,3468.1,1.28725421]
[1735906110773,3.2078,3468.2,3468.1,1.28725421]
[1735906111577,3.4384,3468.2,3468.1,1.28725421]
[1735906112573,3.4384,3468.2,3468.1,0.28852]
[1735906113173,3.4384,3468.2,3468.1,4.7816365]
[1735906114580,0.2306,3468.2,3468.1,4.6485141]
[1735906115881,0.2306,3468.2,3468.1,24.60837642]
[1735906118089,0.2306,3468.2,3468.1,27.81617642]
[1735906121685,0.2306,3468.2,3468.1,16.57403806]
[1735906121986,0.2306,3468.2,3468.1,15.48597227]
[1735906122986,0.2306,3468.2,3468.1,13.36623806]
[1735906123186,0.2306,3468.2,3468.1,4.6485141]
[1735906123376,0.51912,3468.2,3468.1,5.64724831]
[1735906123987,0.2306,3468.2,3468.1,5.64724831]
[1735906124689,0.51912,3468.2,3468.1,12.39901953]
[1735906125091,0.2306,3468.2,3468.1,12.39901953]
[1735906125588,0.51912,3468.2,3468.1,12.39901953]
[1735906125790,0.2306,3468.2,3468.1,12.39901953]
[1735906126087,0.4612,3468.2,3468.1,12.39901953]
[1735906127390,0.4612,3468.2,3468.1,5.64724831]
[1735906128589,0.74972,3468.2,3468.1,5.64724831]
[1735906128794,0.4612,3468.2,3468.1,5.64724831]
[1735906133594,0.4612,3468.2,3468.1,14.64762091]
[1735906136493,0.4612,3468.2,3468.1,13.6488867]
[1735906136685,0.4612,3468.2,3468.1,14.64762091]
[1735906138896,0.4612,3468.2,3468.1,23.37915935]
[1735906140498,0.4612,3468.2,3468.1,14.37878675]
[1735906141703,0.4612,3468.2,3468.1,13.38005254]
[1735906142590,0.4612,3468.2,3468.1,24.6221909]
[1735906144106,0.4612,3468.2,3468.1,13.38005254]
[1735906148004,0.4612,3468.2,3468.1,24.6221909]
[1735906149505,0.4612,3468.2,3468.1,13.38005254]
[1735906158815,0.4612,3468.2,3468.1,27.34757719]
[1735906159119,41.08845,3469.0,3468.9,1.28719421]
[1735906159412,40.8,3469.0,3468.9,1.28719421]
[1735906159719,41.08845,3469.0,3468.9,1.28719421]
[1735906160109,40.8,3469.0,3468.9,1.28719421]
[1735906160411,41.08845,3469.0,3468.9,1.28719421]
[1735906161013,41.08845,3469.0,3468.9,4.6484541]
[1735906163519,41.08845,3469.0,3468.9,0.28846]
[1735906165115,40.8,3469.0,3468.8,4.51093284]
[1735906165320,0.28846,3468.9,3468.8,4.79939284]
[1735906166325,0.28846,3469.0,3468.9,0.28845]
[1735906166624,4.69445062,3469.1,3469.0,0.28845]
[1735906167023,45.49445062,3469.1,3469.0,0.28845]
[1735906167928,44.49571641,3469.1,3469.0,0.28845]
[1735906169524,41.08846,3469.1,3469.0,4.79938284]
[1735906171727,0.28986479,3469.1,3469.0,5.79811705]
[1735906172124,41.08986479,3469.1,3469.0,5.79811705]
[1735906177232,41.32046479,3469.1,3469.0,5.79811705]
[1735906177431,43.81976022,3469.1,3469.0,1.28718421]
[1735906183137,43.81976022,3469.1,3469.0,5.79811705]
[1735906183338,2.73130022,3469.1,3469.0,5.79811705]
[1735906183531,2.73130022,3469.1,3469.0,6.79685126]
[1735906184533,2.73130022,3469.1,3469.0,20.01064785]
[1735906184742,0.46260479,3469.1,3469.0,24.36619295]
[1735906185943,0.46260479,3469.1,3469.0,15.35255372]
[1735906187837,0.46260479,3469.1,3469.0,23.36579891]
[1735906188038,0.46260479,3469.1,3469.0,24.36453312]
[1735906189341,0.46260479,3469.1,3469.0,14.65470871]
[1735906190340,0.46260479,3469.1,3469.0,15.65344292]
[1735906194744,0.46260479,3469.1,3469.0,15.34767908]
[1735906197445,0.46260479,3469.1,3469.0,26.61472812]
[1735906200656,0.46260479,3469.1,3469.0,24.6172597]
[1735906200854,0.46260479,3469.1,3469.0,26.73499391]
[1735906201154,0.46260479,3469.1,3469.0,27.73372812]
[1735906201847,0.46260479,3469.1,3469.0,16.76764742]
[1735906202355,0.46260479,3469.1,3469.0,14.64991321]
[1735906203247,0.46260479,3469.1,3469.0,12.3999004]
[1735906203656,0.46260479,3469.1,3469.0,13.39863461]
[1735906204151,0.46260479,3469.1,3469.0,12.3999004]
[1735906204650,0.46260479,3469.1,3469.0,5.64272931]
[1735906205449,0.46260479,3469.1,3469.0,6.64146352]
[1735906208756,0.46260479,3469.1,3469.0,5.64272931]
[1735906211655,0.46260479,3469.1,3469.0,6.64146352]
[1735906213155,0.46260479,3469.1,3469.0,24.35410274]
[1735906215958,0.46260479,3469.1,3469.0,23.35536853]
[1735906217763,0.46260479,3469.1,3469.0,24.35410274]
[1735906219957,0.46260479,3469.1,3469.0,15.34691884]
[1735906224466,0.46260479,3469.1,3469.0,26.61396788]
[1735906227269,1.18320479,3469.1,3469.0,26.61396788]
[1735906229171,1.18320479,3469.1,3469.0,15.34691884]
[1735906236181,1.47166479,3469.1,3469.0,13.34945042]
[1735906236385,1.47166479,3469.1,3469.0,13.06100042]
[1735906237488,1.47166479,3469.1,3469.0,13.34947042]
[1735906237690,1.47166479,3469.1,3469.0,13.06100042]
[1735906238085,1.47166479,3469.1,3469.0,13.34947042]
[1735906238388,3.74036022,3469.1,3469.0,11.11681086]
[1735906238588,3.74036022,3469.1,3469.0,11.40528086]
[1735906239283,3.74036022,3469.1,3469.0,11.11681086]
[1735906239484,3.74036022,3469.1,3469.0,11.40528086]
[1735906240995,3.74036022,3469.1,3469.0,4.6440151]
[1735906242292,1.47166479,3469.1,3469.0,4.6440151]
[1735906243988,1.47026,3469.1,3469.0,4.6440151]
[1735906244190,1.1818,3469.1,3469.0,4.6440151]
[1735906245100,1.1818,3469.1,3469.0,4.79296803]
[1735906246093,4.3896,3469.1,3469.0,4.79296803]
[1735906246294,1.18320479,3469.1,3469.0,4.79296803]
[1735906246601,1.18320479,3469.1,3469.0,7.04973576]
[1735906247602,1.18320479,3469.1,3469.0,0.28847]
[1735906247803,1.18320479,3469.1,3469.0,4.6409172]
[1735906249304,1.18320479,3469.1,3469.0,5.63965141]
[1735906250405,1.18320479,3469.1,3469.0,4.6409172]
[1735906250605,1.18320479,3469.1,3469.0,13.34785102]
[1735906252106,1.47166479,3469.1,3469.0,13.34785102]
[1735906252407,1.47166479,3469.1,3469.0,14.34658523]
[1735906252605,1.47166479,3469.1,3469.0,13.05938102]
[1735906252798,4.67946479,3469.1,3469.0,13.05938102]
[1735906253497,4.67946479,3469.1,3469.0,13.36121014]
[1735906254905,4.67946479,3469.1,3469.0,4.3524472]
[1735906256202,4.67946479,3469.1,3469.0,4.6409172]
[1735906259700,4.39100479,3469.1,3469.0,4.6409172]
[1735906259905,1.18320479,3469.1,3469.0,4.6409172]
[1735906260509,1.18320479,3469.1,3469.0,5.63965141]
[1735906260909,1.18320479,3469.1,3469.0,6.75865141]
[1735906262012,1.18320479,3469.1,3469.0,15.46208351]
[1735906263708,1.18320479,3469.1,3469.0,13.3443493]
[1735906263909,1.18320479,3469.1,3469.0,15.34181772]
[1735906264712,41.0884,3469.8,3469.7,0.28841]
[1735906265416,40.8,3469.8,3469.2,0.72113]
[1735906265715,0.28843,3469.5,3469.4,1.28715421]
[1735906265907,0.51893,3469.5,3469.4,1.28715421]
[1735906266508,0.51893,3469.5,3469.4,12.38960983]
[1735906266705,4.72546421,3469.5,3469.4,11.10245562]
[1735906267808,4.72546421,3469.5,3469.4,6.75000842]
[1735906268007,0.28843,3469.4,3469.3,4.789141]
[1735906269115,3.4383,3469.5,3469.3,4.500701]
[1735906269317,3.4383,3469.5,3469.4,0.28843]
[1735906270723,3.4383,3469.5,3469.4,4.789131]
[1735906273020,0.2305,3469.5,3469.4,4.789131]
[1735906273722,0.2305,3469.5,3469.4,7.05985373]
[1735906274817,0.2305,3469.5,3469.4,6.87713271]
[1735906275919,0.51893,3469.5,3469.4,4.60640998]
[1735906277122,0.51893,3469.5,3469.4,4.60641998]
[1735906277623,0.51893,3469.5,3469.4,11.355166]
[1735906280321,0.2305,3469.5,3469.4,11.355166]
[1735906281231,0.2305,3469.5,3469.4,13.62588873]
[1735906282920,0.2305,3469.5,3469.4,6.87714271]
[1735906283931,0.51893,3469.5,3469.4,4.60641998]
[1735906284129,0.2305,3469.5,3469.4,4.60641998]
[1735906285926,0.2305,3469.5,3469.4,11.35474825]
[1735906288333,0.2305,3469.5,3469.4,4.60641998]
[1735906290031,0.2305,3469.5,3469.4,6.87714271]
[1735906290228,0.2305,3469.5,3469.4,5.60426239]
[1735906291733,0.2305,3469.5,3469.4,14.60427362]
[1735906295232,0.2305,3469.5,3469.4,17.81207362]
[1735906295633,0.2305,3469.5,3469.4,17.44452392]
[1735906297033,0.2305,3469.5,3469.4,16.44668151]
[1735906297339,0.2305,3469.5,3469.4,17.44452392]
[1735906301536,0.951,3469.5,3469.4,17.44452392]
[1735906304338,0.951,3469.5,3469.4,28.69453796]
[1735906305537,0.951,3469.5,3469.4,33.69453796]
[1735906306543,0.951,3469.5,3469.4,28.69453796]
[1735906306743,0.16244933,3469.5,3469.4,28.69453796]
[1735906307142,6.47433784,3470.6,3470.0,0.72096]
[1735906307445,0.28835,3470.5,3470.4,0.28834]
[1735906308136,0.51885,3470.5,3470.4,0.28834]
[1735906308843,0.51885,3470.5,3470.4,1.28618241]
[1735906309050,0.2305,3470.5,3470.4,1.28618241]
[1735906309243,0.51884,3470.5,3470.4,1.28618241]
[1735906309749,0.51884,3470.5,3470.4,5.78386545]
[1735906310349,0.51884,3470.5,3470.4,4.78602304]
[1735906310951,0.2305,3470.5,3470.4,4.78602304]
[1735906312654,0.2305,3470.5,3470.4,11.34338505]
[1735906318453,0.4334,3470.5,3470.4,11.34338505]
[1735906320056,0.4334,3470.5,3470.4,11.05504505]
[1735906320258,2.99085079,3470.5,3470.4,11.05504505]
[1735906322757,0.4334,3470.5,3470.4,0.28835]
[1735906323260,0.4334,3470.5,3470.4,4.77777941]
[1735906323661,0.72174,3470.5,3470.4,4.77777941]
[1735906323953,0.4334,3470.5,3470.4,4.77777941]
[1735906326364,0.4334,3470.5,3470.4,7.0468902]
[1735906327059,0.4334,3470.5,3470.4,12.0468902]
[1735906327862,0.4334,3470.5,3470.4,12.09246408]
[1735906328967,0.4334,3470.5,3470.4,7.09246408]
[1735906329167,0.4334,3470.5,3470.4,15.69008915]
[1735906330862,0.4334,3470.5,3470.4,24.65588569]
[1735906331567,0.4334,3470.5,3470.4,29.65588569]
[1735906332269,0.28828,3471.3,3470.4,15.69008915]
[1735906332471,0.28828,3471.3,3471.2,0.28828]
[1735906332969,3.2078,3471.5,3471.2,0.28828]
[1735906333171,0.28828,3471.3,3471.1,0.28829]
[1735906333368,3.2078,3471.5,3471.0,3.38711079]
[1735906333569,3.2078,3471.5,3471.4,2.26911079]
[1735906333875,3.49606,3471.5,3471.4,2.26911079]
[1735906334063,2.26869543,3472.0,3471.4,2.26911079]
[1735906334269,0.28824,3471.8,3471.6,0.28825]
[1735906334670,2.26869543,3472.0,3471.7,2.26911079]
[1735906334869,2.55691543,3472.0,3471.8,0.28823]
[1735906335175,0.28822,3472.0,3471.9,0.28823]
[1735906335472,3.2078,3472.1,3472.0,0.28822]
[1735906335473,3.49601,3472.1,3472.0,0.28822]
[1735906335667,3.2078,3472.1,3472.0,0.28822]
[1735906337271,3.49601,3472.1,3472.0,0.28822]
[1735906338182,3.2078,3472.1,3472.0,0.28822]
[1735906338369,3.49601,3472.1,3472.0,0.28822]
[1735906338869,3.2078,3472.1,3472.0,0.28822]
[1735906339170,3.49601,3472.1,3472.0,0.28822]
[1735906341576,3.72641,3472.1,3472.0,0.28822]
[1735906341775,4.00261,3472.1,3472.0,0.28822]
[1735906343080,3.7144,3472.1,3472.0,0.28822]
[1735906343285,4.00261,3472.1,3472.0,0.28822]
[1735906345884,3.7144,3472.1,3472.0,0.28822]
[1735906346374,4.00261,3472.1,3472.0,0.28822]
[1735906347380,3.7144,3472.1,3472.0,0.28822]
[1735906348681,4.00261,3472.1,3472.0,0.28822]
[1735906351676,3.7144,3472.1,3472.0,0.28822]
[1735906352974,3.7144,3472.1,3472.0,2.55733079]
[1735906353780,0.5066,3472.1,3472.0,2.55733079]
[1735906354580,0.5066,3472.1,3472.0,7.03897468]
[1735906359291,0.5066,3472.1,3472.0,8.15697468]
[1735906359691,0.79481,3472.1,3472.0,4.76986389]
[1735906360190,0.79481,3472.1,3472.0,0.28822]
[1735906360384,0.5066,3472.1,3472.0,0.28822]
[1735906360782,0.79481,3472.1,3472.0,0.28822]
[1735906361688,0.79481,3472.1,3471.7,5.59964389]
[1735906361689,0.28823,3472.0,3471.9,0.28823]
[1735906362190,0.28824,3471.9,3471.8,0.28823]
[1735906362387,0.28824,3471.8,3471.7,4.76988389]
[1735906362580,0.28824,3471.8,3471.7,4.48164389]
[1735906362781,7.55735079,3471.8,3471.7,4.48164389]
[1735906363593,48.35735079,3471.8,3471.7,4.48164389]
[1735906364380,48.35735079,3471.8,3471.1,0.28829]
[1735906364381,48.06911079,3471.8,3471.1,0.28829]
[1735906364585,3.49609,3471.2,3471.1,0.28829]
[1735906364981,3.2078,3471.2,3471.1,2.55740079]
[1735906365992,3.2078,3471.6,3471.1,2.26911079]
[1735906366188,2.26869543,3472.0,3471.8,0.28824]
[1735906366189,0.28823,3471.9,3471.8,0.28824]
[1735906372286,3.2078,3472.0,3471.9,0.28823]
[1735906373299,3.49602,3472.0,3471.9,0.28823]
[1735906373501,3.72642,3472.0,3471.9,0.28823]
[1735906373693,3.4382,3472.0,3471.9,0.28823]
[1735906375093,0.2304,3472.0,3471.9,0.28823]
[1735906375694,0.2304,3472.0,3471.9,4.6605186]
[1735906380602,0.2304,3472.0,3471.9,11.38298444]
[1735906385104,0.2304,3472.0,3471.9,4.6605186]
[1735906386806,0.2304,3472.0,3471.9,13.62246057]
[1735906387807,0.2304,3472.0,3471.9,4.6605186]
[1735906389006,0.51862,3472.0,3471.9,4.6605186]
[1735906389307,0.2304,3472.0,3471.9,4.6605186]
[1735906389715,0.51862,3472.0,3471.9,4.6605186]
[1735906391012,0.2304,3472.0,3471.9,4.6605186]
[1735906391706,0.2304,3472.0,3471.9,11.39526753]
[1735906391911,0.51862,3472.0,3471.9,11.39526753]
[1735906392107,0.2304,3472.0,3471.9,11.39526753]
[1735906392309,0.2304,3472.0,3471.9,12.39178192]
[1735906394612,0.2304,3472.0,3471.9,14.61897496]
[1735906396215,0.2304,3472.0,3471.9,5.65703299]
[1735906396806,0.51862,3472.0,3471.9,5.65703299]
[1735906397308,0.51862,3472.0,3471.9,4.6605186]
[1735906397509,0.51862,3472.0,3471.9,5.65703299]
[1735906397712,0.51862,3472.0,3471.9,12.39150112]
[1735906397915,0.2304,3472.0,3471.9,12.39150112]
[1735906398216,0.51862,3472.0,3471.9,12.39150112]
[1735906398518,0.2304,3472.0,3471.9,12.39150112]
[1735906401217,0.2304,3472.0,3471.9,11.39498673]
[1735906401520,0.2304,3472.0,3471.9,12.39150112]
[1735906403521,0.2304,3472.0,3471.9,5.65703299]
[1735906404022,0.51862,3472.0,3471.9,5.65703299]
[1735906404216,0.2304,3472.0,3471.9,5.65703299]
[1735906404922,0.51862,3472.0,3471.9,5.65703299]
[1735906405122,0.2304,3472.0,3471.9,5.65703299]
[1735906405522,0.5059,3472.0,3471.9,5.65703299]
[1735906406223,0.79412,3472.0,3471.9,5.65703299]
[1735906406424,0.5059,3472.0,3471.9,5.65703299]
[1735906407027,0.79412,3472.0,3471.9,5.65703299]
[1735906409126,0.5059,3472.0,3471.9,5.65703299]
[1735906412728,0.5059,3472.0,3471.9,14.61897496]
[1735906413825,0.5059,3472.0,3471.9,23.38493513]
[1735906414028,0.5059,3472.0,3471.9,14.42299316]
[1735906419929,0.5059,3472.0,3471.9,25.66720076]
[1735906422628,0.5059,3472.0,3471.9,26.66371515]
[1735906425328,0.5059,3472.0,3471.9,15.41950755]
[1735906431838,0.5059,3472.0,3471.9,16.53750755]
[1735906433036,5.76466543,3472.5,3471.9,16.53750755]
[1735906433037,2.26869543,3472.5,3471.9,16.24927755]
[1735906433246,2.26869543,3472.5,3472.4,4.49249439]
[1735906433442,2.26869543,3472.5,3472.4,5.48900878]
[1735906433739,2.26869543,3472.5,3472.4,4.49249439]
[1735906434134,2.26869543,3472.5,3472.4,5.48900878]
[1735906434439,2.72691048,3472.7,3472.6,0.28816]
[1735906434632,2.72691048,3473.5,3473.4,0.2881]
[1735906434833,2.72691048,3473.5,3473.4,1.28461439]
[1735906436333,3.49588,3473.7,3473.6,0.28809]
[1735906436534,3.49588,3473.7,3473.6,1.28460439]
[1735906436842,3.2078,3473.7,3473.6,1.28460439]
[1735906437445,3.49588,3473.7,3473.6,1.28460439]
[1735906438039,3.2078,3473.7,3473.6,1.28460439]
[1735906438741,3.2078,3473.7,3473.6,0.28809]
[1735906438940,3.2078,3473.7,3473.6,1.28460439]
[1735906439544,3.2078,3473.7,3473.6,5.77107402]
[1735906443539,3.2078,3474.1,3473.6,5.48298402]
[1735906443849,3.2078,3474.1,3474.0,2.28107878]
[1735906446244,3.2078,3474.1,3474.0,2.55189074]
[1735906446645,0.28802,3474.4,3474.0,2.55189074]
[1735906446849,0.28802,3474.4,3474.3,0.28803]
[1735906448256,3.2078,3474.5,3474.1,1.117]
[1735906448548,0.28802,3474.4,3474.3,2.55186074]
[1735906449746,3.2078,3474.5,3474.3,2.26384074]
[1735906449948,3.49582,3474.5,3474.4,0.28802]
[1735906450146,0.27387311,3474.4,3474.3,2.26384074]
[1735906450548,0.27387311,3474.4,3474.3,2.55187074]
[1735906451141,3.2078,3474.5,3474.3,1.98996763]
[1735906451446,3.2078,3474.5,3474.4,0.28802]
[1735906454553,3.2078,3475.4,3474.4,3.2078]
[1735906454752,3.49574,3475.4,3475.3,0.28794]
[1735906455449,3.2078,3475.4,3475.3,0.28794]
[1735906457654,3.49574,3475.4,3475.3,0.28794]
[1735906457955,3.2078,3475.4,3475.3,0.28794]
[1735906458554,3.49574,3475.4,3475.3,0.28794]
[1735906458751,3.2078,3475.4,3475.3,0.28794]
[1735906459653,3.49574,3475.4,3475.3,0.28794]
[1735906459856,3.2078,3475.8,3475.1,2.26384074]
[1735906460159,3.2078,3475.8,3475.4,2.26384074]
[1735906460359,3.49571,3475.8,3475.7,0.28791]
[1735906461455,3.2078,3475.8,3475.7,0.28791]
[1735906461655,3.49571,3475.8,3475.7,0.28791]
[1735906461854,3.2078,3475.8,3475.7,0.28791]
[1735906462260,3.49571,3475.8,3475.7,0.28791]
[1735906467962,3.92759,3475.8,3475.3,1.117]
[1735906468161,3.49574,3475.4,3475.3,1.40494]
[1735906468462,3.49574,3475.4,3475.3,0.99468386]
[1735906468463,44.29574,3475.4,3475.3,0.99468386]
[1735906469156,3.49574,3475.4,3475.3,0.99468386]
[1735906469362,3.49574,3475.4,3472.4,19.43562306]
[1735906469363,0.28802,3474.6,3474.3,1.117]
[1735906469564,0.28802,3474.6,3474.5,1.28268386]
[1735906469763,0.28802,3474.5,3474.2,6.73544764]
[1735906470156,4.36998386,3474.6,3474.2,0.99468386]
[1735906470355,0.28803,3474.3,3474.1,1.117]
[1735906470552,0.28803,3474.3,3474.2,1.28272386]
[1735906470961,0.28803,3474.3,3474.2,0.99468386]
[1735906472059,0.28803,3474.3,3474.2,1.28272386]
[1735906472258,0.29009724,3474.3,3474.0,0.28806]
[1735906472460,0.29009724,3474.3,3473.9,3.38117579]
[1735906472662,0.00206724,3474.3,3474.2,0.28804]
[1735906474261,0.28804,3474.2,3474.1,0.28804]
[1735906474766,0.00206724,3474.3,3473.9,3.38117579]
[1735906474966,0.29010724,3474.3,3474.2,0.28804]
[1735906475156,0.28804,3474.2,3474.1,0.28804]
[1735906475556,0.29010724,3474.3,3474.1,0.28804]
[1735906475760,0.00206724,3474.3,3474.2,0.28804]